lending/lending_fUSD_20260310
["ID","MTS","AMOUNT","RATE_DAILY","PERIOD"]
[408066619,1773101441479,-155.0,0.00019998,2]
[408066620,1773101441489,-500.0,0.00019998,2]
[408066621,1773101441499,-1367.0,0.00019999,2]
[408066622,1773101441508,-500.0,0.00019999,2]
[408066623,1773101441518,-500.86669167,0.00019999,2]
[408066624,1773101441527,-500.0,0.00019999,2]
[408066625,1773101441537,-500.0,0.00019999,2]
[408066626,1773101441546,-500.0,0.00019999,2]
[408066627,1773101441555,-150.0,0.00019999,2]
[408066628,1773101441565,-500.0,0.00019999,2]
[408066629,1773101441574,-500.0,0.00019999,2]
[408066630,1773101441584,-500.0,0.00019999,2]
[408066631,1773101441594,-500.0,0.00019999,2]
[408066632,1773101441603,-500.0,0.00019999,2]
[408066633,1773101441612,-500.0,0.00019999,2]
[408066634,1773101441625,-500.0,0.00019999,2]
[408066635,1773101441635,-500.0,0.00019999,2]
[408066636,1773101441644,-500.0,0.00019999,2]
[408066637,1773101441654,-500.0,0.00019999,2]
[408066638,1773101441663,-500.0,0.00019999,2]
[408066639,1773101441674,-500.0,0.00019999,2]
[408066640,1773101441683,-500.0,0.00019999,2]
[408066641,1773101441694,-500.0,0.00019999,2]
[408066642,1773101441706,-616.16,0.00019999,2]
[408066643,1773101441715,-296.92362366,0.00019999,2]
[408066644,1773101442086,-877.784652,0.00019106,2]
[408066645,1773101442095,-219.88977059,0.00019106,2]
[408066711,1773101445803,-264.47276717,0.00019105,2]
[408066712,1773101445813,-135.75331842,0.00019105,2]
[408066713,1773101445868,-364.24668158,0.00019105,2]
[408066714,1773101445877,-500.0,0.00019105,2]
[408066715,1773101445886,-629.27104303,0.00019105,2]
[408066717,1773101445896,-345.07492557,0.00019105,2]
[408066719,1773101445905,-500.0,0.00019105,2]
[408066721,1773101445915,-500.0,0.00019105,2]
[408066723,1773101445925,-500.0,0.00019105,2]
[408066725,1773101445934,-500.0,0.00019105,2]
[408066727,1773101445943,-500.0,0.00019105,2]
[408066729,1773101445953,-500.0,0.00019105,2]
[408066731,1773101445962,-500.0,0.00019105,2]
[408066733,1773101445974,-500.0,0.00019105,2]
[408066735,1773101445983,-500.0,0.00019105,2]
[408066737,1773101445992,-500.0,0.00019105,2]
[408066739,1773101446001,-500.0,0.00019105,2]
[408066741,1773101446011,-266.16141489,0.00019105,2]
[408066744,1773101446022,-233.83858511,0.00019105,2]
[408066746,1773101446031,-217.76161489,0.00019105,2]
[408066788,1773101742276,-250.0,0.00015,2]
[408066789,1773101756355,-300.0,0.00017,2]
[408066790,1773101756380,-503.0,0.00017,2]
[408066791,1773101785459,-503.0,0.00017,2]
[408066792,1773101793648,-500.0,0.00017616,2]
[408066793,1773101793670,-500.0,0.00017644,2]
[408066795,1773102090694,150.0,0.0001921,120]
[408066796,1773102390955,152.84,0.00014157,2]
[408066797,1773102467073,1492.0,0.0002,120]
[408066800,1773102631955,-466.86,0.00016438,2]
[408066801,1773102631966,-201.079983,0.00016804,7]
[408066802,1773102631977,-354.319904,0.00016804,7]
[408066803,1773102631988,-234.6,0.00016895,2]
[408066804,1773102631998,-1200.0,0.00016999,2]
[408066805,1773102632008,-550.0,0.00016999,2]
[408066806,1773102632017,-20000.0,0.00017,2]
[408066807,1773102632027,-10000.0,0.00017,2]
[408066808,1773102632037,-503.0,0.00017,2]
[408066809,1773102632047,-1486.61934424,0.0001715,2]
[408066810,1773102632058,-200.0,0.00017153,2]
[408066811,1773102632073,-1000.0,0.00017223,2]
[408066812,1773102632082,-1000.0,0.00017223,2]
[408066813,1773102632092,-150.0,0.00017438,7]
[408066814,1773102632102,-153.326134,0.00017438,7]
[408066815,1773102632112,-156.652269,0.00017438,7]
[408066816,1773102632121,-159.978403,0.00017438,7]
[408066817,1773102632130,-163.304538,0.00017438,7]
[408066818,1773102632139,-166.630673,0.00017438,7]
[408066819,1773102632149,-169.956807,0.00017438,7]
[408066820,1773102632159,-173.282942,0.00017438,7]
[408066821,1773102632168,-176.609077,0.00017438,7]
[408066822,1773102632188,-179.935211,0.00017438,7]
[408066823,1773102632200,-1000.0,0.00017448,2]
[408066824,1773102632209,-1552.28,0.00017532,2]
[408066825,1773102632219,-2000.0,0.00017552,2]
[408066826,1773102632232,-1600.0,0.00017689,2]
[408066828,1773102632242,-1500.0,0.0001772,2]
[408066830,1773102632252,-3201.65511598,0.00017798,2]
[408066832,1773102632261,-2024.94,0.00017798,2]
[408066834,1773102632270,-800.97696343,0.00017808,2]
[408066836,1773102632279,-234.6,0.00017834,2]
[408066837,1773102632288,-1000.0,0.00017848,2]
[408066838,1773102632297,-503.30059977,0.000179,2]
[408066839,1773102632306,-4979.46338078,0.000179,2]
[408066840,1773102632316,-11520.35896163,0.00017954,2]
[408066841,1773102632324,-578.0,0.00017963,2]
[408066842,1773102632334,-209.28,0.0001802,2]
[408066843,1773102632344,-151.0,0.00018043,2]
[408066844,1773102632353,-236.80810791,0.00018045,2]
[408066845,1773102632363,-538.9228513,0.00018045,2]
[408066846,1773102632372,-500.0,0.00018045,2]
[408066847,1773102632381,-500.0,0.00018045,2]
[408066848,1773102632391,-500.0,0.00018045,2]
[408066849,1773102632400,-500.0,0.00018045,2]
[408066850,1773102632410,-500.0,0.00018045,2]
[408066851,1773102632419,-500.0,0.00018045,2]
[408066852,1773102632430,-500.0,0.00018045,2]
[408066853,1773102632439,-500.0,0.00018045,2]
[408066854,1773102632448,-500.0,0.00018045,2]
[408066855,1773102632457,-500.0,0.00018045,2]
[408066856,1773102632466,-500.0,0.00018045,2]
[408066857,1773102632475,-500.0,0.00018045,2]
[408066858,1773102632484,-541.75506533,0.00018045,2]
[408066859,1773102632494,-500.0,0.00018045,2]
[408066860,1773102632503,-500.0,0.00018045,2]
[408066861,1773102632512,-500.0,0.00018045,2]
[408066862,1773102632522,-500.0,0.00018045,2]
[408066863,1773102632531,-500.0,0.00018045,2]
[408066864,1773102632542,-500.0,0.00018045,2]
[408066865,1773102632551,-500.0,0.00018045,2]
[408066866,1773102632560,-500.0,0.00018045,2]
[408066867,1773102632570,-500.0,0.00018045,2]
[408066868,1773102632579,-500.0,0.00018045,2]
[408066869,1773102632588,-500.0,0.00018045,2]
[408066870,1773102632597,-500.0,0.00018045,2]
[408066871,1773102632606,-500.0,0.00018045,2]
[408066872,1773102632615,-500.0,0.00018045,2]
[408066873,1773102632624,-500.0,0.00018045,2]
[408066874,1773102632633,-500.0,0.00018045,2]
[408066875,1773102632643,-500.0,0.00018045,2]
[408066876,1773102632652,-500.0,0.00018045,2]
[408066877,1773102632661,-500.0,0.00018045,2]
[408066878,1773102632670,-500.0,0.00018045,2]
[408066879,1773102632679,-500.0,0.00018045,2]
[408066880,1773102632688,-500.0,0.00018045,2]
[408066881,1773102632697,-500.0,0.00018045,2]
[408066882,1773102632706,-500.0,0.00018045,2]
[408066883,1773102632715,-500.0,0.00018045,2]
[408066884,1773102632724,-500.0,0.00018045,2]
[408066885,1773102632734,-500.0,0.00018045,2]
[408066886,1773102632743,-500.0,0.00018045,2]
[408066887,1773102632752,-500.0,0.00018045,2]
[408066888,1773102632761,-500.0,0.00018045,2]
[408066889,1773102632771,-500.0,0.00018045,2]
[408066890,1773102632780,-500.0,0.00018045,2]
[408066891,1773102632789,-500.0,0.00018045,2]
[408066892,1773102632799,-500.0,0.00018045,2]
[408066893,1773102632807,-500.0,0.00018045,2]
[408066894,1773102632816,-500.0,0.00018045,2]
[408066895,1773102632825,-500.0,0.00018045,2]
[408066896,1773102632835,-500.0,0.00018045,2]
[408066897,1773102632844,-500.0,0.00018045,2]
[408066898,1773102632853,-500.0,0.00018045,2]
[408066899,1773102632863,-500.0,0.00018045,2]
[408066900,1773102632872,-500.0,0.00018045,2]
[408066901,1773102632881,-500.0,0.00018045,2]
[408066902,1773102632890,-500.0,0.00018045,2]
[408066903,1773102632901,-500.0,0.00018045,2]
[408066904,1773102632910,-500.0,0.00018045,2]
[408066905,1773102632919,-250.0,0.00018045,2]
[408066906,1773102632929,-500.0,0.00018045,2]
[408066907,1773102632939,-500.0,0.00018045,2]
[408066908,1773102632948,-500.0,0.00018045,2]
[408066909,1773102632957,-500.0,0.00018045,2]
[408066910,1773102632967,-500.0,0.00018045,2]
[408066911,1773102632976,-500.0,0.00018045,2]
[408066912,1773102632986,-500.0,0.00018045,2]
[408066913,1773102632999,-500.0,0.00018045,2]
[408066914,1773102633009,-500.0,0.00018045,2]
[408066915,1773102633018,-500.0,0.00018045,2]
[408066916,1773102633028,-500.0,0.00018045,2]
[408066917,1773102633039,-500.0,0.00018045,2]
[408066918,1773102633048,-500.0,0.00018045,2]
[408066919,1773102633058,-500.0,0.00018045,2]
[408066920,1773102633068,-500.0,0.00018045,2]
[408066921,1773102633077,-500.0,0.00018045,2]
[408066922,1773102633086,-300.0,0.00018045,2]
[408066923,1773102633096,-500.0,0.00018045,2]
[408066924,1773102633105,-500.0,0.00018045,2]
[408066925,1773102633115,-500.0,0.00018045,2]
[408066926,1773102633124,-500.0,0.00018045,2]
[408066927,1773102633133,-500.0,0.00018045,2]
[408066928,1773102633143,-500.0,0.00018045,2]
[408066929,1773102633153,-500.0,0.00018045,2]
[408066930,1773102633163,-584.39,0.00018045,2]
[408066931,1773102633172,-20235.48016709,0.00018046,2]
[408066932,1773102633185,-4184.56582557,0.00018046,2]
[408066933,1773102633455,-333.32,0.00018046,2]
[408066934,1773102633467,-536.56326,0.00018046,2]
[408066935,1773102633486,-1145.25619905,0.00018046,2]
[408066936,1773102633497,-134401.11454829,0.00018046,2]
[408066937,1773102633507,-150.000001,0.00018054,7]
[408066938,1773102633516,-1000.0,0.00018086,2]
[408066939,1773102633525,-2000.0,0.00018088,2]
[408066940,1773102633535,-609.0,0.00018104,2]
[408066941,1773102633545,-500.0,0.00018149,2]
[408066942,1773102633554,-11520.35896158,0.0001817,2]
[408066943,1773102633566,-2339.09427756,0.00018256,2]
[408066944,1773102633577,-1000.0,0.00018306,2]
[408066945,1773102633586,-500.0,0.00018319,2]
[408066946,1773102633597,-584.39,0.00018319,2]
[408066947,1773102633607,-2938.74900218,0.00018353,3]
[408066948,1773102633616,-500.0,0.00018356,7]
[408066949,1773102633627,-500.0,0.00018356,7]
[408066950,1773102633636,-500.0,0.00018356,7]
[408066951,1773102633645,-11520.35896158,0.00018386,2]
[408066952,1773102633654,-2784.0,0.000184,2]
[408066953,1773102633663,-847.0,0.000184,2]
[408066954,1773102633673,-1000.0,0.00018477,2]
[408066955,1773102633681,-2339.09427755,0.00018491,2]
[408066956,1773102633691,-584.39,0.00018593,2]
[408066957,1773102633700,-11520.35896158,0.00018603,2]
[408066958,1773102633709,-211.0,0.00018637,2]
[408066959,1773102633719,-1680.0,0.00018659,2]
[408066960,1773102633728,-300.0,0.00018699,2]
[408066961,1773102633737,-847.0,0.0001872,2]
[408066962,1773102633746,-847.0,0.0001872,2]
[408066963,1773102633755,-2806.0,0.0001872,2]
[408066964,1773102633764,-2339.09427755,0.00018726,2]
[408066965,1773102633773,-14224.85525872,0.00018728,2]
[408066966,1773102633782,-234.6,0.00018772,2]
[408066967,1773102633791,-11520.35896158,0.00018819,2]
[408066968,1773102633800,-1000.0,0.00018828,2]
[408066969,1773102633809,-569.0,0.00018834,2]
[408066970,1773102633819,-150.0,0.00018834,2]
[408066971,1773102633828,-150.0,0.00018834,2]
[408066972,1773102633838,-150.0,0.00018834,2]
[408066973,1773102633847,-150.0,0.00018834,2]
[408066974,1773102633856,-294.0,0.00018834,2]
[408066975,1773102633866,-519.0,0.00018855,2]
[408066976,1773102633875,-218.0,0.00018855,2]
[408066977,1773102633884,-14224.85525866,0.00018858,2]
[408066978,1773102633894,-584.39,0.00018867,2]
[408066979,1773102633903,-389.05,0.00018904,2]
[408066980,1773102633913,-5000.0,0.00018905,2]
[408066981,1773102633923,-4160.41218102,0.00018905,2]
[408066982,1773102633932,-544.85773056,0.00018905,2]
[408066983,1773102633942,-427.54291812,0.00018905,2]
[408066984,1773102633951,-218.81276387,0.00018905,2]
[408066985,1773102633961,-8000.0,0.00018911,2]
[408066986,1773102633971,-695.39793187,0.00018911,2]
[408066987,1773102633983,-1000.0,0.00018911,2]
[408066988,1773102633998,-1896.48987267,0.00018911,2]
[408066989,1773102634008,-500.0,0.00018911,2]
[408066990,1773102634017,-1500.0,0.00018911,2]
[408066991,1773102634026,-1500.0,0.00018911,2]
[408066992,1773102634037,-3000.0,0.00018911,2]
[408066993,1773102634046,-250.0,0.00018911,2]
[408066994,1773102634055,-10000.0,0.00018911,2]
[408066995,1773102634067,-250.0,0.00018911,2]
[408066996,1773102634076,-1500.0,0.00018911,2]
[408066997,1773102634086,-2610.19052079,0.00018911,2]
[408066998,1773102634095,-250.0,0.00018911,2]
[408066999,1773102634104,-300.0,0.00018911,2]
[408067000,1773102634113,-174.61919141,0.00018911,2]
[408067001,1773102634123,-693.3919763,0.00018911,2]
[408067002,1773102634132,-151.0,0.00018911,2]
[408067003,1773102634141,-1000.0,0.00018911,2]
[408067004,1773102634151,-1500.0,0.00018911,2]
[408067005,1773102634161,-1000.0,0.00018911,2]
[408067006,1773102634172,-668.65185757,0.00018911,2]
[408067007,1773102634182,-176.639564,0.00018911,2]
[408067008,1773102634191,-151.0,0.00018911,2]
[408067009,1773102634201,-151.0,0.00018911,2]
[408067010,1773102634212,-361.876305,0.00018911,2]
[408067011,1773102634223,-361.876305,0.00018911,2]
[408067012,1773102634233,-361.876305,0.00018911,2]
[408067013,1773102634244,-361.876305,0.00018911,2]
[408067014,1773102634255,-694.728393,0.00018911,2]
[408067015,1773102634264,-694.728393,0.00018911,2]
[408067016,1773102634275,-694.728393,0.00018911,2]
[408067017,1773102634285,-694.728393,0.00018911,2]
[408067018,1773102634294,-2339.09427755,0.00018961,2]
[408067019,1773102634305,-150.0,0.00018986,2]
[408067020,1773102634315,-150.0,0.00018986,2]
[408067021,1773102634324,-178.69066135,0.00018986,2]
[408067022,1773102634334,-237.47755465,0.00018986,2]
[408067023,1773102634343,-150.0,0.00018986,2]
[408067024,1773102634353,-150.0,0.00018986,2]
[408067025,1773102634363,-150.0,0.00018986,2]
[408067026,1773102634373,-259.53855074,0.00018986,2]
[408067027,1773102634383,-496.40379828,0.00018986,2]
[408067028,1773102634393,-150.0,0.00018986,2]
[408067029,1773102634402,-150.0,0.00018986,2]
[408067030,1773102634413,-150.0,0.00018986,2]
[408067031,1773102634423,-198.59181803,0.00018986,2]
[408067032,1773102634433,-150.0,0.00018986,2]
[408067033,1773102634442,-196.51282028,0.00018986,2]
[408067034,1773102634452,-2143.0,0.00018986,2]
[408067035,1773102634462,-14224.85525866,0.00018988,2]
[408067036,1773102634473,-151.0,0.00018993,2]
[408067037,1773102634483,-151.0,0.00018993,2]
[408067038,1773102634493,-151.0,0.00018993,2]
[408067039,1773102634502,-151.0,0.00018993,2]
[408067040,1773102634511,-151.0,0.00018993,2]
[408067041,1773102634521,-151.0,0.00018993,2]
[408067042,1773102634532,-525.997103,0.00018993,2]
[408067043,1773102634541,-525.997103,0.00018993,2]
[408067044,1773102634550,-525.997103,0.00018993,2]
[408067045,1773102634560,-525.997103,0.00018993,2]
[408067046,1773102634570,-196.51231277,0.00018995,2]
[408067047,1773102634581,-178.69066135,0.00018997,2]
[408067048,1773102634591,-237.47755465,0.00018997,2]
[408067049,1773102634601,-259.53855074,0.00018997,2]
[408067050,1773102634610,-496.40379828,0.00018997,2]
[408067051,1773102634620,-196.51282028,0.00018997,2]
[408067052,1773102634630,-150.0,0.00018997,2]
[408067053,1773102634639,-151.0,0.00019002,2]
[408067054,1773102634649,-150.0,0.00019003,2]
[408067055,1773102634659,-244.77173181,0.00019004,2]
[408067056,1773102634669,-421.07457272,0.00019004,2]
[408067057,1773102634679,-500.0,0.00019004,2]
[408067058,1773102634690,-500.0,0.00019004,2]
[408067059,1773102634700,-500.0,0.00019004,2]
[408067060,1773102634711,-313.33717601,0.00019004,2]
[408067061,1773102634720,-1159.05776479,0.00019004,5]
[408067062,1773102634730,-500.0,0.00019004,2]
[408067063,1773102634739,-500.0,0.00019004,2]
[408067064,1773102634748,-500.0,0.00019004,2]
[408067065,1773102634757,-500.0,0.00019004,2]
[408067066,1773102634768,-500.0,0.00019004,2]
[408067067,1773102634777,-500.0,0.00019004,2]
[408067068,1773102634787,-500.0,0.00019004,2]
[408067069,1773102634796,-500.0,0.00019004,2]
[408067070,1773102634806,-500.0,0.00019004,2]
[408067071,1773102634815,-500.0,0.00019004,2]
[408067072,1773102634824,-500.0,0.00019004,2]
[408067073,1773102634833,-500.0,0.00019004,2]
[408067074,1773102634842,-500.0,0.00019004,2]
[408067075,1773102634852,-500.0,0.00019004,2]
[408067076,1773102634862,-500.0,0.00019004,2]
[408067077,1773102634871,-500.0,0.00019004,2]
[408067078,1773102634882,-500.0,0.00019004,2]
[408067079,1773102634892,-500.0,0.00019004,2]
[408067080,1773102634902,-500.0,0.00019004,2]
[408067081,1773102634911,-500.0,0.00019004,2]
[408067082,1773102634922,-500.0,0.00019004,2]
[408067083,1773102634932,-500.0,0.00019004,2]
[408067084,1773102634943,-500.0,0.00019004,2]
[408067085,1773102634953,-500.0,0.00019004,2]
[408067086,1773102634963,-500.0,0.00019004,2]
[408067087,1773102634974,-500.0,0.00019004,2]
[408067088,1773102634984,-500.0,0.00019004,2]
[408067089,1773102635000,-500.0,0.00019004,2]
[408067090,1773102635009,-500.0,0.00019004,2]
[408067091,1773102635018,-150.0,0.00019004,2]
[408067092,1773102635028,-150.0,0.00019004,2]
[408067093,1773102635039,-2500000.0,0.00019005,2]
[408067094,1773102635048,-861.35316821,0.00019005,2]
[408067095,1773102635058,-23376.07552473,0.00019005,2]
[408067096,1773102635068,-2636.89295841,0.00019005,2]
[408067106,1773102638001,-151.0,0.00019005,2]
[408067107,1773102638012,-151.0,0.00019005,2]
[408067108,1773102638021,-869.100123,0.00019005,2]
[408067109,1773102638031,-869.100123,0.00019005,2]
[408067110,1773102638041,-869.100123,0.00019005,2]
[408067111,1773102638050,-869.100123,0.00019005,2]
[408067112,1773102638059,-151.0,0.00019005,2]
[408067113,1773102638070,-151.0,0.00019005,2]
[408067114,1773102638078,-151.0,0.00019005,2]
[408067115,1773102638087,-151.0,0.00019005,2]
[408067116,1773102638096,-151.0,0.00019005,2]
[408067117,1773102638106,-151.0,0.00019005,2]
[408067118,1773102638115,-151.0,0.00019005,2]
[408067119,1773102638124,-291.521865,0.00019005,2]
[408067120,1773102638134,-525.997103,0.00019005,2]
[408067121,1773102638143,-525.997103,0.00019005,2]
[408067122,1773102638152,-525.997103,0.00019005,2]
[408067123,1773102638163,-525.997103,0.00019005,2]
[408067124,1773102638172,-151.0,0.00019005,2]
[408067125,1773102638182,-151.0,0.00019005,2]
[408067126,1773102638191,-361.876305,0.00019005,2]
[408067127,1773102638200,-361.876305,0.00019005,2]
[408067128,1773102638209,-361.876305,0.00019005,2]
[408067129,1773102638219,-361.876305,0.00019005,2]
[408067130,1773102638228,-694.728393,0.00019005,2]
[408067131,1773102638237,-694.728393,0.00019005,2]
[408067132,1773102638247,-694.728393,0.00019005,2]
[408067133,1773102638256,-694.728393,0.00019005,2]
[408067135,1773102638265,-150.0,0.00019006,2]
[408067137,1773102638273,-1000.0,0.00019006,2]
[408067139,1773102638284,-178.69066135,0.00019007,2]
[408067141,1773102638293,-237.47755465,0.00019007,2]
[408067143,1773102638302,-259.53855074,0.00019007,2]
[408067145,1773102638312,-496.40379828,0.00019007,2]
[408067147,1773102638321,-196.51282028,0.00019007,2]
[408067150,1773102638330,-150.0,0.00019008,2]
[408067152,1773102638339,-150.0,0.00019014,2]
[408067154,1773102638348,-150.0,0.00019014,2]
[408067156,1773102638358,-161.62513775,0.00019014,2]
[408067158,1773102638367,-178.69066135,0.00019017,2]
[408067160,1773102638376,-237.47755465,0.00019017,2]
[408067162,1773102638386,-259.53855074,0.00019017,2]
[408067163,1773102638396,-496.40379828,0.00019017,2]
[408067164,1773102638405,-196.51282028,0.00019017,2]
[408067165,1773102638415,-150.0,0.00019019,2]
[408067166,1773102638424,-150.0,0.0001902,2]
[408067167,1773102638433,-150.0,0.00019023,2]
[408067168,1773102638443,-150.0,0.00019025,2]
[408067169,1773102638452,-178.69066135,0.00019027,2]
[408067170,1773102638462,-237.47755465,0.00019027,2]
[408067171,1773102638472,-259.53855074,0.00019027,2]
[408067172,1773102638481,-496.40379828,0.00019027,2]
[408067173,1773102638490,-196.51282028,0.00019027,2]
[408067174,1773102638499,-150.0,0.0001903,2]
[408067175,1773102638509,-11520.35896158,0.00019035,2]
[408067176,1773102638518,-150.0,0.00019037,2]
[408067177,1773102638526,-178.69066135,0.00019037,2]
[408067178,1773102638536,-237.47755465,0.00019037,2]
[408067179,1773102638545,-259.53855074,0.00019037,2]
[408067180,1773102638555,-496.40379828,0.00019037,2]
[408067181,1773102638564,-196.51282028,0.00019037,2]
[408067182,1773102638574,-150.0,0.00019041,2]
[408067183,1773102638583,-150.0,0.00019041,2]
[408067184,1773102638592,-150.0,0.00019041,2]
[408067185,1773102638819,-150.0,0.00019041,2]
[408067186,1773102638854,-150.0,0.00019045,2]
[408067187,1773102638863,-178.69066135,0.00019048,2]
[408067188,1773102638872,-237.47755465,0.00019048,2]
[408067189,1773102638882,-259.53855074,0.00019048,2]
[408067190,1773102638891,-496.40379828,0.00019048,2]
[408067191,1773102638901,-196.51282028,0.00019048,2]
[408067192,1773102638911,-150.0,0.0001905,2]
[408067193,1773102638921,-150.0,0.00019052,2]
[408067194,1773102638930,-150.0,0.00019054,2]
[408067195,1773102638939,-1159.49132177,0.00019055,2]
[408067196,1773102638948,-178.69066135,0.00019058,2]
[408067197,1773102638957,-237.47755465,0.00019058,2]
[408067198,1773102638967,-259.53855074,0.00019058,2]
[408067199,1773102638976,-496.40379828,0.00019058,2]
[408067200,1773102638985,-196.51282028,0.00019058,2]
[408067201,1773102638999,-150.0,0.00019059,2]
[408067202,1773102639010,-150.0,0.00019063,2]
[408067203,1773102639022,-150.0,0.00019064,2]
[408067204,1773102639033,-178.69066135,0.00019068,2]
[408067205,1773102639043,-237.47755465,0.00019068,2]
[408067206,1773102639053,-259.53855074,0.00019068,2]
[408067207,1773102639065,-496.40379828,0.00019068,2]
[408067208,1773102639075,-196.51282028,0.00019068,2]
[408067209,1773102639088,-150.0,0.00019068,2]
[408067210,1773102639098,-150.0,0.00019068,2]
[408067211,1773102639107,-150.0,0.00019071,2]
[408067212,1773102639119,-150.15140528,0.00019073,2]
[408067213,1773102639128,-500.0,0.00019073,2]
[408067214,1773102639137,-500.0,0.00019073,2]
[408067215,1773102639147,-500.0,0.00019073,2]
[408067216,1773102639156,-150.0,0.00019074,2]
[408067217,1773102639165,-150.0,0.00019077,2]
[408067218,1773102639175,-178.69066135,0.00019078,2]
[408067219,1773102639184,-237.47755465,0.00019078,2]
[408067220,1773102639193,-259.53855074,0.00019078,2]
[408067221,1773102639203,-496.40379828,0.00019078,2]
[408067222,1773102639212,-196.51282028,0.00019078,2]
[408067223,1773102639221,-150.0,0.00019084,2]
[408067224,1773102639230,-150.0,0.00019085,2]
[408067225,1773102639239,-150.0,0.00019088,2]
[408067226,1773102639249,-178.69066135,0.00019089,2]
[408067227,1773102639258,-237.47755465,0.00019089,2]
[408067228,1773102639267,-259.53855074,0.00019089,2]
[408067229,1773102639277,-496.40379828,0.00019089,2]
[408067230,1773102639286,-196.51282028,0.00019089,2]
[408067231,1773102639295,-150.0,0.00019095,2]
[408067232,1773102639305,-150.0,0.00019096,2]
[408067233,1773102639314,-150.0,0.00019096,2]
[408067234,1773102639323,-161.62513775,0.00019096,2]
[408067235,1773102639333,-150.0,0.00019096,2]
[408067236,1773102639342,-178.69066135,0.00019099,2]
[408067237,1773102639351,-237.47755465,0.00019099,2]
[408067238,1773102639361,-259.53855074,0.00019099,2]
[408067239,1773102639370,-496.40379828,0.00019099,2]
[408067240,1773102639379,-196.51282028,0.00019099,2]
[408067241,1773102639388,-503.0,0.000191,3]
[408067242,1773102639397,-150.0,0.00019103,2]
[408067243,1773102639407,-4160.41218098,0.00019104,2]
[408067244,1773102639416,-150.0,0.00019105,2]
[408067245,1773102639425,-168.0,0.00019105,2]
[408067246,1773102639434,-150.0,0.00019108,2]
[408067247,1773102639444,-178.69066135,0.00019109,2]
[408067248,1773102639453,-237.47755465,0.00019109,2]
[408067249,1773102639462,-259.53855074,0.00019109,2]
[408067250,1773102639471,-496.40379828,0.00019109,2]
[408067251,1773102639480,-196.51282028,0.00019109,2]
[408067252,1773102639490,-150.0,0.00019113,2]
[408067253,1773102639499,-150.0,0.00019113,2]
[408067254,1773102639508,-150.0,0.00019119,2]
[408067255,1773102639517,-14224.85525866,0.00019119,2]
[408067256,1773102639527,-178.69066135,0.00019119,2]
[408067257,1773102639537,-237.47755465,0.00019119,2]
[408067258,1773102639547,-259.53855074,0.00019119,2]
[408067259,1773102639556,-496.40379828,0.00019119,2]
[408067260,1773102639565,-196.51282028,0.00019119,2]
[408067261,1773102639575,-150.0,0.00019121,2]
[408067262,1773102639584,-150.0,0.00019123,2]
[408067263,1773102639593,-150.0,0.00019123,2]
[408067264,1773102639602,-150.0,0.00019123,2]
[408067265,1773102639611,-151.0,0.00019126,2]
[408067266,1773102639620,-361.876305,0.00019126,2]
[408067267,1773102639630,-361.876305,0.00019126,2]
[408067268,1773102639639,-361.876305,0.00019126,2]
[408067269,1773102639649,-361.876305,0.00019126,2]
[408067270,1773102639659,-150.0,0.0001913,2]
[408067271,1773102639668,-178.69066135,0.0001913,2]
[408067272,1773102639677,-237.47755465,0.0001913,2]